fUSD/lending_fUSD_20240629
["ID","MTS","AMOUNT","RATE_DAILY","PERIOD"]
[330663706,1719697871341,-827.18,0.00013917,3]
[330663707,1719697871353,-500.0,0.00013917,3]
[330663708,1719697871364,-1104.85,0.00013917,3]
[330663709,1719697871376,-500.0,0.00013917,3]
[330663710,1719697871386,-1395.85,0.00013917,3]
[330663711,1719697871395,-500.0,0.00013917,3]
[330663712,1719697871404,-1977.24,0.00013917,3]
[330663713,1719697871414,-500.0,0.00013917,3]
[330663714,1719697871424,-500.0,0.00013917,3]
[330663715,1719697871434,-500.0,0.00013917,3]
[330663716,1719697871443,-2002.8,0.00013917,3]
[330663717,1719697871455,-1107.12,0.00013917,3]
[330663718,1719697871464,-1145.37,0.00013917,3]
[330663719,1719697871474,-500.0,0.00013917,3]
[330663720,1719697871483,-578.86,0.00013917,3]
[330663721,1719697871493,-1357.05,0.00013917,3]
[330663722,1719697871503,-500.0,0.00013917,3]
[330663723,1719697871512,-1325.74,0.00013917,3]
[330663724,1719697871522,-612.88,0.00013917,3]
[330663725,1719697871532,-531.3,0.00013917,3]
[330663726,1719697871542,-500.0,0.00013917,3]
[330663727,1719697871551,-1583.18,0.00013917,3]
[330663728,1719697871561,-500.0,0.00013917,3]
[330663729,1719697871570,-1903.53,0.00013917,3]
[330663730,1719697871580,-974.68,0.00013917,3]
[330663731,1719697871589,-1173.45,0.00013917,3]
[330663732,1719697871601,-655.58,0.00013917,3]
[330663733,1719697871610,-1071.66,0.00013917,3]
[330663734,1719697871620,-1289.06,0.00013917,3]
[330663735,1719697871629,-1588.5,0.00013917,3]
[330663736,1719697871638,-500.0,0.00013917,3]
[330663737,1719697871648,-500.0,0.00013917,3]
[330663738,1719697871657,-500.0,0.00013917,3]
[330663739,1719697871670,-698.01,0.00013917,3]
[330663740,1719697871679,-500.0,0.00013917,3]
[330663741,1719697871689,-721.94,0.00013917,3]
[330663742,1719697871698,-1731.8,0.00013917,3]
[330663743,1719697871707,-1201.53,0.00013917,3]
[330663744,1719697871717,-500.0,0.00013917,3]
[330663745,1719697871727,-1285.08,0.00013917,3]
[330663746,1719697871736,-500.0,0.00013917,3]
[330663747,1719697871745,-1686.09,0.00013917,3]
[330663748,1719697871755,-500.0,0.00013917,3]
[330663749,1719697871765,-45646.3,0.00013917,3]
[330663750,1719697871774,-500.0,0.00013917,3]
[330663751,1719697871783,-500.0,0.00013917,3]
[330663752,1719697871793,-500.0,0.00013917,3]
[330663753,1719697871802,-1850.97,0.00013917,3]
[330663754,1719697871811,-883.33,0.00013917,3]
[330663755,1719697871820,-1153.77,0.00013917,3]
[330663756,1719697871830,-500.0,0.00013917,3]
[330663757,1719697871839,-740.63,0.00013917,3]
[330663758,1719697871849,-500.0,0.00013917,3]
[330663759,1719697871858,-1824.49,0.00013917,3]
[330663760,1719697871867,-500.0,0.00013917,3]
[330663761,1719697871877,-952.13,0.00013917,3]
[330663762,1719697871886,-1348.05,0.00013917,3]
[330663763,1719697871895,-1236.2,0.00013917,3]
[330663764,1719697871904,-1015.54,0.00013917,3]
[330663765,1719697871914,-500.0,0.00013917,3]
[330663766,1719697871923,-3244.88,0.00013917,3]
[330663767,1719697871932,-1365.55,0.00013917,3]
[330663768,1719697871941,-500.0,0.00013917,3]
[330663769,1719697871951,-703.01,0.00013917,3]
[330663770,1719697871961,-500.0,0.00013917,3]
[330663771,1719697871970,-5853.89,0.00013917,3]
[330663772,1719697871979,-500.0,0.00013917,3]
[330663773,1719697871988,-933.24,0.00013917,3]
[330663774,1719697871998,-708.25,0.00013917,2]
[330663775,1719697872007,-500.0,0.00013917,3]
[330663776,1719697872017,-1074.21,0.00013917,3]
[330663777,1719697872026,-585.7,0.00013917,3]
[330663778,1719697872035,-500.0,0.00013917,3]
[330663779,1719697872044,-1013.7,0.00013917,3]
[330663780,1719697872054,-775.91,0.00013917,3]
[330663781,1719697872063,-500.0,0.00013917,3]
[330663782,1719697872073,-1851.76,0.00013917,3]
[330663783,1719697872084,-645.47,0.00013917,3]
[330663784,1719697872095,-2091.76,0.00013917,3]
[330663785,1719697872104,-500.0,0.00013917,3]
[330663786,1719697872114,-1482.82,0.00013917,3]
[330663787,1719697872123,-549.88,0.00013917,3]
[330663788,1719697872132,-500.0,0.00013917,3]
[330663789,1719697872142,-500.0,0.00013917,3]
[330663790,1719697872151,-1075.72,0.00013917,3]
[330663791,1719697872161,-500.0,0.00013917,3]
[330663792,1719697872170,-500.0,0.00013917,3]
[330663793,1719697872180,-500.0,0.00013917,3]
[330663794,1719697872190,-1439.6,0.00013917,3]
[330663795,1719697872200,-500.0,0.00013917,3]
[330663796,1719697872209,-966.29,0.00013917,3]
[330663797,1719697872219,-1322.17,0.00013917,3]
[330663798,1719697872228,-1867.92,0.00013917,3]
[330663799,1719697872237,-500.0,0.00013917,3]
[330663800,1719697872247,-500.0,0.00013917,3]
[330663801,1719697872257,-742.11,0.00013917,3]
[330663802,1719697872266,-1676.42,0.00013917,3]
[330663803,1719697872277,-860.95,0.00013917,3]
[330663804,1719697872287,-500.0,0.00013917,3]
[330663805,1719697872295,-500.0,0.00013917,3]
[330663806,1719697872305,-625.47,0.00013917,3]
[330663807,1719697872314,-684.56,0.00013917,3]
[330663808,1719697872323,-500.0,0.00013917,3]
[330663809,1719697872333,-1574.73,0.00013917,3]
[330663810,1719697872342,-733.26,0.00013917,3]
[330663811,1719697872352,-500.0,0.00013917,3]
[330663812,1719697872361,-500.0,0.00013917,3]
[330663813,1719697872370,-837.81,0.00013917,3]
[330663814,1719697872384,-500.0,0.00013917,3]
[330663815,1719697872393,-500.0,0.00013917,3]
[330663816,1719697872402,-625.60911103,0.00013917,3]
[330663817,1719697872411,-5685.01,0.00013917,3]
[330663818,1719697872421,-500.0,0.00013917,3]
[330663819,1719697872431,-500.0,0.00013917,3]
[330663820,1719697872440,-500.0,0.00013917,3]
[330663821,1719697872451,-505.28,0.00013917,3]
[330663822,1719697872461,-500.0,0.00013917,3]
[330663823,1719697872470,-500.0,0.00013917,3]
[330663824,1719697872480,-500.0,0.00013917,3]
[330663825,1719697872489,-500.0,0.00013917,3]
[330663826,1719697872499,-1313.08,0.00013917,3]
[330663827,1719697872508,-1018.92,0.00013917,3]
[330663828,1719697872517,-500.0,0.00013917,3]
[330663829,1719697872526,-500.0,0.00013917,3]
[330663830,1719697872535,-1686.75,0.00013917,3]
[330663831,1719697872545,-909.13,0.00013917,3]
[330663832,1719697872554,-500.0,0.00013917,3]
[330663833,1719697872563,-500.0,0.00013917,3]
[330663834,1719697872573,-500.0,0.00013917,3]
[330663835,1719697872582,-1118.48,0.00013917,3]
[330663836,1719697872591,-1145.27,0.00013917,3]
[330663837,1719697872601,-1391.8,0.00013917,3]
[330663838,1719697872611,-500.0,0.00013917,3]
[330663839,1719697872621,-844.99,0.00013917,3]
[330663840,1719697872631,-871.12,0.00013917,3]
[330663841,1719697872642,-5131.41,0.00013917,3]
[330663842,1719697872652,-2484.8,0.00013917,3]
[330663843,1719697872663,-500.0,0.00013917,3]
[330663844,1719697872672,-1085.2,0.00013917,3]
[330663845,1719697872682,-500.0,0.00013917,3]
[330663846,1719697872691,-500.0,0.00013917,3]
[330663847,1719697872701,-1427.19,0.00013917,3]
[330663848,1719697872710,-500.0,0.00013917,3]
[330663849,1719697872719,-2549.66,0.00013917,3]
[330663850,1719697872729,-500.0,0.00013917,3]
[330663851,1719697872738,-500.0,0.00013917,3]
[330663852,1719697872747,-695.57,0.00013917,3]
[330663853,1719697872846,-1016.52,0.00013917,3]
[330663854,1719697872856,-500.0,0.00013917,3]
[330663855,1719697872866,-500.0,0.00013917,3]
[330663856,1719697872875,-500.0,0.00013917,3]
[330663857,1719697872884,-533.37,0.00013917,3]
[330663858,1719697872893,-930.48,0.00013917,3]
[330663859,1719697872903,-1893.42,0.00013917,3]
[330663860,1719697872912,-500.0,0.00013917,3]
[330663861,1719697872921,-2382.38,0.00013917,3]
[330663862,1719697872931,-1984.05,0.00013917,3]
[330663863,1719697872940,-613.33,0.00013917,3]
[330663864,1719697872949,-561.25,0.00013917,3]
[330663865,1719697872959,-500.0,0.00013917,3]
[330663866,1719697872968,-360.50125187,0.00013917,3]
[330663867,1719697872978,-500.0,0.00013917,3]
[330663868,1719697872988,-496.96128642,0.00013917,3]
[330663869,1719697872997,-1247.74,0.00013917,3]
[330663870,1719697873007,-1215.25,0.00013917,3]
[330663871,1719697873019,-2075.91,0.00013917,3]
[330663872,1719697873030,-500.0,0.00013917,3]
[330663873,1719697873040,-666.38,0.00013917,3]
[330663874,1719697873050,-500.0,0.00013917,3]
[330663875,1719697873061,-500.0,0.00013917,3]
[330663876,1719697873071,-1690.88,0.00013917,3]
[330663877,1719697873081,-1254.35,0.00013917,3]
[330663878,1719697873091,-3206.93,0.00013917,3]
[330663879,1719697873100,-1508.98,0.00013917,3]
[330663880,1719697873109,-672.66,0.00013917,3]
[330663881,1719697873119,-500.0,0.00013917,3]
[330663882,1719697873128,-500.0,0.00013917,3]
[330663883,1719697873138,-854.38,0.00013917,3]
[330663884,1719697873147,-1295.44,0.00013917,3]
[330663885,1719697873156,-1061.13,0.00013917,3]
[330663886,1719697873166,-1169.05,0.00013917,3]
[330663887,1719697873177,-911.66,0.00013917,3]
[330663888,1719697873187,-500.0,0.00013917,3]
[330663889,1719697873197,-500.0,0.00013917,3]
[330663890,1719697873207,-844.35,0.00013917,3]
[330663891,1719697873218,-658.44,0.00013917,3]
[330663892,1719697873228,-500.0,0.00013917,3]
[330663893,1719697873238,-597.33,0.00013917,3]
[330663894,1719697873248,-500.0,0.00013917,3]
[330663895,1719697873260,-873.63,0.00013917,3]
[330663896,1719697873270,-918.03,0.00013917,3]
[330663897,1719697873279,-500.0,0.00013917,3]
[330663898,1719697873289,-455.5880283,0.00013917,3]
[330663899,1719697873298,-1884.45,0.00013917,3]
[330663900,1719697873308,-500.0,0.00013917,3]
[330663901,1719697873317,-3902.11,0.00013917,3]
[330663902,1719697873327,-772.5,0.00013917,3]
[330663903,1719697873336,-2299.96,0.00013917,3]
[330663904,1719697873345,-1527.8,0.00013917,3]
[330663905,1719697873354,-1870.97,0.00013917,3]
[330663906,1719697873363,-2490.2,0.00013917,3]
[330663907,1719697873375,-846.22,0.00013917,3]
[330663908,1719697873387,-872.98,0.00013917,3]
[330663909,1719697873397,-500.0,0.00013917,3]
[330663910,1719697873406,-2161.66,0.00013917,3]
[330663911,1719697873416,-500.0,0.00013917,3]
[330663912,1719697873425,-604.3,0.00013917,3]
[330663913,1719697873434,-847.11,0.00013917,3]
[330663914,1719697873444,-500.0,0.00013917,3]
[330663915,1719697873455,-500.0,0.00013917,3]
[330663916,1719697873467,-500.0,0.00013917,3]
[330663917,1719697873477,-500.0,0.00013917,3]
[330663918,1719697873487,-582.17,0.00013917,3]
[330663919,1719697873496,-588.89,0.00013917,3]
[330663920,1719697873507,-3519.63,0.00013917,3]
[330663921,1719697873516,-500.0,0.00013917,3]
[330663922,1719697873526,-500.0,0.00013917,3]
[330663923,1719697873535,-2599.7,0.00013917,3]
[330663924,1719697873545,-500.0,0.00013917,3]
[330663925,1719697873555,-500.0,0.00013917,3]
[330663926,1719697873564,-1281.86,0.00013917,3]
[330663927,1719697873573,-2658.38,0.00013917,3]
[330663928,1719697873586,-534.39,0.00013917,3]
[330663929,1719697873596,-1914.74,0.00013917,3]
[330663930,1719697873606,-500.0,0.00013917,3]
[330663931,1719697873615,-500.0,0.00013917,3]
[330663932,1719697873625,-1427.54,0.00013917,3]
[330663933,1719697873634,-9938.18,0.00013917,3]
[330663934,1719697873643,-749.22,0.00013917,3]
[330663935,1719697873652,-1236.84,0.00013917,3]
[330663936,1719697873661,-500.0,0.00013917,3]
[330663937,1719697873670,-500.0,0.00013917,3]
[330663938,1719697873680,-2257.43,0.00013917,3]
[330663939,1719697873689,-1289.53,0.00013917,3]
[330663940,1719697873698,-500.0,0.00013917,3]
[330663941,1719697873707,-933.0,0.00013917,3]
[330663942,1719697873717,-500.0,0.00013917,3]
[330663943,1719697873726,-500.0,0.00013917,3]
[330663944,1719697873735,-1659.26,0.00013917,3]
[330663945,1719697873745,-3361.9,0.00013917,3]
[330663946,1719697873754,-3107.67,0.00013917,3]
[330663947,1719697873763,-505.25,0.00013917,3]
[330663948,1719697873772,-500.0,0.00013917,3]
[330663949,1719697873782,-500.0,0.00013917,3]
[330663950,1719697873791,-500.0,0.00013917,3]
[330663951,1719697873800,-1031.14,0.00013917,3]
[330663952,1719697873810,-500.0,0.00013917,3]
[330663953,1719697873820,-500.0,0.00013917,3]
[330663954,1719697873829,-500.0,0.00013917,3]
[330663955,1719697873838,-2081.24,0.00013917,3]
[330663956,1719697873850,-22088.54,0.00013917,3]
[330663957,1719697873858,-500.0,0.00013917,3]
[330663958,1719697873870,-5023.6,0.00013917,3]
[330663959,1719697873879,-608.32,0.00013917,3]
[330663960,1719697873888,-801.09,0.00013917,3]
[330663961,1719697873897,-1971.0,0.00013917,3]
[330663962,1719697873906,-574.5,0.00013917,3]
[330663963,1719697873915,-1567.25,0.00013917,3]
[330663964,1719697873924,-3016.9,0.00013917,3]
[330663965,1719697873933,-794.3,0.00013917,3]
[330663966,1719697873942,-1045.65,0.00013917,3]
[330663967,1719697873951,-1134.29,0.00013917,3]
[330663968,1719697873960,-1963.59,0.00013917,3]
[330663969,1719697873969,-1149.35,0.00013917,3]
[330663970,1719697873978,-7724.48,0.00013917,3]
[330663971,1719697873987,-500.0,0.00013917,3]
[330663972,1719697873996,-7929.21,0.00013917,3]
[330663973,1719697874004,-500.0,0.00013917,3]
[330663974,1719697874013,-1201.55,0.00013917,3]
[330663975,1719697874022,-757.6,0.00013917,3]
[330663976,1719697874031,-1234.75,0.00013917,3]
[330663977,1719697874039,-1529.23,0.00013917,3]
[330663978,1719697874048,-1878.19,0.00013917,3]
[330663979,1719697874057,-500.0,0.00013917,3]
[330663980,1719697874066,-691.0,0.00013917,3]
[330663981,1719697874074,-2814.02,0.00013917,3]
[330663982,1719697874083,-500.0,0.00013917,3]
[330663983,1719697874092,-500.0,0.00013917,3]
[330663984,1719697874101,-500.0,0.00013917,3]
[330663985,1719697874110,-3153.71,0.00013917,3]
[330663986,1719697874119,-1264.25,0.00013917,3]
[330663987,1719697874128,-945.84,0.00013917,3]
[330663988,1719697874137,-500.0,0.00013917,3]
[330663989,1719697874147,-500.0,0.00013917,3]
[330663990,1719697874156,-500.0,0.00013917,3]
[330663991,1719697874166,-725.8,0.00013917,3]
[330663992,1719697874175,-844.67,0.00013917,3]
[330663993,1719697874184,-2776.06,0.00013917,3]
[330663994,1719697874194,-1599.88,0.00013917,3]
[330663995,1719697874204,-1177.78,0.00013917,3]
[330663996,1719697874213,-902.09,0.00013917,3]
[330663997,1719697874223,-1529.45,0.00013917,3]
[330663998,1719697874232,-531.92,0.00013917,3]
[330663999,1719697874241,-743.44,0.00013917,3]
[330664000,1719697874250,-574.2,0.00013917,3]
[330664001,1719697874259,-500.0,0.00013917,3]
[330664002,1719697874268,-1862.69,0.00013917,3]
[330664003,1719697874278,-2338.68,0.00013917,3]
[330664004,1719697874288,-500.0,0.00013917,3]
[330664005,1719697874297,-500.0,0.00013917,3]
[330664006,1719697874306,-500.0,0.00013917,3]
[330664007,1719697874315,-500.0,0.00013917,3]
[330664008,1719697874324,-561.21,0.00013917,3]
[330664009,1719697874333,-2684.36,0.00013917,3]
[330664010,1719697874344,-1258.1,0.00013917,3]
[330664011,1719697874353,-500.0,0.00013917,3]
[330664012,1719697874363,-500.0,0.00013917,3]
[330664013,1719697874373,-865.21,0.00013917,3]
[330664014,1719697874385,-500.0,0.00013917,3]
[330664015,1719697874394,-1191.09,0.00013917,3]
[330664016,1719697874403,-500.0,0.00013917,3]
[330664017,1719697874414,-500.0,0.00013917,3]
[330664018,1719697874423,-500.0,0.00013917,3]
[330664019,1719697874432,-1259.89,0.00013917,3]
[330664020,1719697874442,-500.0,0.00013917,3]
[330664021,1719697874452,-500.0,0.00013917,3]
[330664022,1719697874461,-500.0,0.00013917,3]
[330664023,1719697874471,-726.84,0.00013917,3]
[330664024,1719697874481,-894.84,0.00013917,3]
[330664025,1719697874490,-5502.95,0.00013917,3]
[330664026,1719697874499,-500.0,0.00013917,3]
[330664027,1719697874508,-804.55,0.00013917,3]
[330664028,1719697874517,-1767.86,0.00013917,3]
[330664029,1719697874527,-645.52,0.00013917,3]
[330664030,1719697874536,-500.0,0.00013917,3]
[330664031,1719697874546,-545.65,0.00013917,3]
[330664032,1719697874555,-528.33,0.00013917,3]
[330664033,1719697874565,-765.3,0.00013917,3]
[330664034,1719697874574,-500.0,0.00013917,3]
[330664035,1719697874583,-1285.81,0.00013917,3]
[330664036,1719697874593,-1267.3,0.00013917,3]
[330664037,1719697874602,-500.0,0.00013917,3]
[330664038,1719697874612,-1866.94,0.00013917,3]
[330664039,1719697874621,-825.44,0.00013917,3]
[330664040,1719697874631,-500.0,0.00013917,3]
[330664041,1719697874640,-250.0,0.00013917,3]
[330664042,1719697874650,-623.61,0.00013917,3]
[330664043,1719697874659,-880.44,0.00013917,3]
[330664044,1719697874668,-806.06,0.00013917,3]
[330664045,1719697874677,-3596.23,0.00013917,3]
[330664046,1719697874687,-588.77,0.00013917,3]
[330664047,1719697874696,-500.0,0.00013917,3]
[330664048,1719697874706,-500.0,0.00013917,3]
[330664049,1719697874715,-1703.73,0.00013917,3]
[330664050,1719697874725,-627.61,0.00013917,3]
[330664051,1719697874734,-500.0,0.00013917,3]
[330664052,1719697874744,-1606.7,0.00013917,3]
[330664053,1719697874753,-659.8,0.00013917,3]
[330664054,1719697874763,-500.0,0.00013917,3]
[330664055,1719697874772,-500.0,0.00013917,3]
[330664056,1719697874782,-6175.57,0.00013917,3]
[330664057,1719697874792,-1132.58,0.00013917,3]
[330664058,1719697874801,-500.0,0.00013917,3]
[330664059,1719697874811,-500.0,0.00013917,3]
[330664060,1719697874821,-500.0,0.00013917,3]
[330664061,1719697874831,-4971.65,0.00013917,3]
[330664062,1719697874840,-500.0,0.00013917,3]
[330664063,1719697874851,-1526.7,0.00013917,3]
[330664064,1719697874860,-500.0,0.00013917,3]
[330664065,1719697874869,-4764.49,0.00013917,3]
[330664066,1719697874879,-500.0,0.00013917,3]
[330664067,1719697874888,-500.0,0.00013917,3]
[330664068,1719697874898,-990.4,0.00013917,3]
[330664069,1719697874907,-5595.59,0.00013917,3]
[330664070,1719697874916,-650.44,0.00013917,3]
[330664071,1719697874926,-3939.36,0.00013917,3]
[330664072,1719697874935,-2098.21,0.00013917,3]
[330664073,1719697874944,-932.74,0.00013917,3]
[330664074,1719697874954,-568.9,0.00013917,3]
[330664075,1719697874963,-291.34,0.00013917,3]
[330664076,1719697874973,-943.54,0.00013917,3]
[330664077,1719697874982,-1048.8,0.00013917,3]
[330664078,1719697874991,-659.06,0.00013917,3]
[330664079,1719697875001,-1357.28,0.00013917,3]
[330664080,1719697875010,-4134.76,0.00013917,3]
[330664081,1719697875019,-500.0,0.00013917,3]
[330664082,1719697875029,-500.0,0.00013917,3]
[330664083,1719697875039,-4580.63,0.00013917,3]
[330664084,1719697875048,-500.0,0.00013917,3]
[330664085,1719697875057,-500.0,0.00013917,3]
[330664086,1719697875067,-824.84,0.00013917,3]
[330664087,1719697875077,-4545.37,0.00013917,3]
[330664088,1719697875087,-824.25,0.00013917,3]
[330664089,1719697875097,-1343.98,0.00013917,3]
[330664090,1719697875107,-1024.35,0.00013917,3]
[330664091,1719697875116,-1876.11,0.00013917,3]
[330664092,1719697875125,-1236.5,0.00013917,3]
[330664093,1719697875134,-3087.82,0.00013917,3]
[330664094,1719697875143,-649.92,0.00013917,3]
[330664095,1719697875153,-3079.7,0.00013917,3]
[330664096,1719697875162,-1991.15,0.00013917,3]
[330664097,1719697875171,-500.0,0.00013917,3]
[330664098,1719697875180,-527.58,0.00013917,3]
[330664099,1719697875190,-8026.11,0.00013917,3]
[330664100,1719697875202,-936.25,0.00013917,3]
[330664101,1719697875212,-1350.58,0.00013917,3]
[330664102,1719697875221,-1069.06,0.00013917,3]
[330664103,1719697875230,-4296.17,0.00013917,3]
[330664104,1719697875241,-5643.12,0.00013917,3]
[330664105,1719697875251,-3276.15,0.00013917,3]
[330664106,1719697875260,-500.0,0.00013917,3]
[330664107,1719697875270,-500.0,0.00013917,3]
[330664108,1719697875279,-500.0,0.00013917,3]
[330664109,1719697875289,-1170.29,0.00013917,3]
[330664110,1719697875298,-500.0,0.00013917,3]
[330664111,1719697875307,-500.0,0.00013917,3]
[330664112,1719697875317,-500.0,0.00013917,3]
[330664113,1719697875326,-2603.39,0.00013917,3]
[330664114,1719697875335,-893.86,0.00013917,3]
[330664115,1719697875344,-1176.78,0.00013917,3]
[330664116,1719697875354,-1185.67,0.00013917,3]
[330664117,1719697875363,-518.31,0.00013917,3]
[330664118,1719697875375,-500.0,0.00013917,3]
[330664119,1719697875385,-547.81,0.00013917,3]
[330664120,1719697875395,-500.0,0.00013917,3]
[330664121,1719697875404,-500.0,0.00013917,3]
[330664122,1719697875414,-500.0,0.00013917,3]
[330664123,1719697875423,-500.0,0.00013917,3]
[330664124,1719697875433,-3268.24,0.00013917,3]
[330664125,1719697875442,-2326.63,0.00013917,3]
[330664126,1719697875453,-1561.26,0.00013917,3]
[330664127,1719697875463,-500.0,0.00013917,3]
[330664128,1719697875472,-3892.68,0.00013917,3]
[330664129,1719697875482,-500.0,0.00013917,3]
[330664130,1719697875491,-500.0,0.00013917,3]
[330664131,1719697875500,-608.94,0.00013917,3]
[330664132,1719697875509,-500.0,0.00013917,3]
[330664133,1719697875519,-1365.85,0.00013917,3]
[330664134,1719697875528,-1072.42,0.00013917,3]
[330664135,1719697875537,-619.13,0.00013917,3]
[330664136,1719697875547,-651.51,0.00013917,3]
[330664137,1719697875556,-1596.85,0.00013917,3]
[330664138,1719697875566,-500.0,0.00013917,3]
[330664139,1719697875575,-1324.36,0.00013917,3]
[330664140,1719697875585,-500.0,0.00013917,3]
[330664141,1719697875594,-500.0,0.00013917,3]
[330664142,1719697875603,-5315.74,0.00013917,3]
[330664143,1719697875612,-500.0,0.00013917,3]
[330664144,1719697875621,-1610.36,0.00013917,3]
[330664145,1719697875630,-1094.74,0.00013917,3]
[330664146,1719697875640,-500.0,0.00013917,3]
[330664147,1719697875649,-1796.48,0.00013917,3]
[330664148,1719697875658,-500.0,0.00013917,3]
[330664149,1719697875668,-2379.59,0.00013917,3]
[330664150,1719697875677,-500.0,0.00013917,3]
[330664151,1719697875687,-966.95,0.00013917,3]
[330664152,1719697875696,-500.0,0.00013917,3]
[330664153,1719697875706,-6591.7,0.00013917,3]
[330664154,1719697875715,-500.0,0.00013917,3]
[330664155,1719697875725,-3369.59,0.00013917,3]
[330664156,1719697875734,-2662.28,0.00013917,3]
[330664157,1719697875744,-500.0,0.00013917,3]
[330664158,1719697875753,-831.59,0.00013917,3]
[330664159,1719697875763,-630.2,0.00013917,3]
[330664160,1719697875772,-914.37,0.00013917,3]
[330664161,1719697875782,-529.01,0.00013917,3]
[330664162,1719697875791,-500.0,0.00013917,3]
[330664163,1719697875800,-1402.23,0.00013917,3]
[330664164,1719697875810,-1411.69,0.00013917,3]
[330664165,1719697875819,-586.77977993,0.00013917,3]
[330664166,1719697875828,-1196.92,0.00013917,3]
[330664167,1719697875837,-500.0,0.00013917,3]
[330664168,1719697875847,-500.0,0.00013917,3]
[330664169,1719697875856,-1448.17,0.00013917,3]
[330664170,1719697875865,-2109.02,0.00013917,3]
[330664171,1719697875874,-500.0,0.00013917,3]
[330664172,1719697875883,-2625.47,0.00013917,3]
[330664173,1719697875892,-505.13395283,0.00013917,3]
[330664174,1719697875901,-3029.81,0.00013917,3]
[330664175,1719697875910,-890.02,0.00013917,3]
[330664176,1719697875919,-2903.57,0.00013917,3]
[330664177,1719697875929,-4050.51,0.00013917,3]
[330664178,1719697875938,-679.62,0.00013917,3]
[330664179,1719697875947,-500.0,0.00013917,3]
[330664180,1719697875956,-2762.0,0.00013917,3]
[330664181,1719697875965,-500.0,0.00013917,3]
[330664182,1719697875974,-1721.06,0.00013917,3]
[330664183,1719697875984,-500.0,0.00013917,3]
[330664184,1719697875993,-2217.0,0.00013917,3]
[330664185,1719697876002,-3787.36,0.00013917,3]
[330664186,1719697876011,-677.84,0.00013917,3]
[330664187,1719697876021,-862.21,0.00013917,3]
[330664188,1719697876030,-1414.56,0.00013917,3]
[330664189,1719697876039,-1050.13,0.00013917,3]
[330664190,1719697876048,-858.84,0.00013917,3]
[330664191,1719697876057,-2169.01,0.00013917,3]
[330664192,1719697876067,-500.0,0.00013917,3]
[330664193,1719697876076,-2110.08,0.00013917,3]
[330664194,1719697876085,-2715.14,0.00013917,3]
[330664195,1719697876095,-2046.76,0.00013917,3]
[330664196,1719697876104,-1167.19,0.00013917,3]
[330664197,1719697876113,-500.0,0.00013917,3]
[330664198,1719697876123,-2443.62,0.00013917,3]
[330664199,1719697876132,-944.41,0.00013917,3]
[330664200,1719697876142,-1971.4,0.00013917,3]
[330664201,1719697876151,-557.42,0.00013917,3]
[330664202,1719697876161,-3188.54,0.00013917,3]
[330664203,1719697876170,-1082.52,0.00013917,3]
[330664204,1719697876180,-500.0,0.00013917,3]
[330664205,1719697876192,-3460.61,0.00013917,3]